bitfinex/quotes_BTCUSD_20250904
["timestamp","ask_amount","ask_price","bid_price","bid_amount"]
[1757017095822,0.00146926,110370.0,110360.0,0.71826728]
[1757017096030,0.00046926,110370.0,110360.0,0.71826728]
[1757017096482,0.00046926,110370.0,110360.0,0.72326728]
[1757017096881,0.00046926,110370.0,110360.0,1.12326728]
[1757017097891,0.00046926,110370.0,110360.0,1.14417148]
[1757017098716,0.00046926,110370.0,110360.0,1.12326728]
[1757017099820,0.39943127,110400.0,110380.0,0.18117664]
[1757017100020,0.57395669,110400.0,110390.0,0.33641583]
[1757017100243,0.18325007,110400.0,110390.0,0.33641583]
[1757017100460,0.18325007,110400.0,110390.0,0.34160583]
[1757017101023,0.02207919,110400.0,110390.0,0.34160583]
[1757017101253,0.20323861,110400.0,110390.0,0.34160583]
[1757017101650,0.20323861,110400.0,110390.0,0.33641583]
[1757017102060,0.20423861,110400.0,110390.0,0.33641583]
[1757017102269,0.20323861,110400.0,110390.0,0.33641583]
[1757017102441,0.20423861,110400.0,110390.0,0.18117583]
[1757017102649,0.20423861,110400.0,110390.0,0.33621583]
[1757017105510,0.57715863,110400.0,110390.0,0.33621583]
[1757017106650,0.57715863,110400.0,110390.0,0.34140583]
[1757017107661,0.57715863,110400.0,110390.0,0.34120583]
[1757017109736,0.57715863,110400.0,110390.0,0.18636583]
[1757017109941,0.57715863,110400.0,110390.0,0.34120583]
[1757017110886,0.57715863,110400.0,110390.0,0.15995]
[1757017111876,0.18117583,110390.0,110380.0,0.55718666]
[1757017112111,0.18117583,110390.0,110380.0,0.43292263]
[1757017112682,0.55607585,110390.0,110380.0,0.43083823]
[1757017112889,0.55607585,110390.0,110380.0,0.43293823]
[1757017113165,0.55607585,110390.0,110380.0,0.43393823]
[1757017113505,0.55607585,110390.0,110380.0,0.24755599]
[1757017113711,0.55607585,110390.0,110380.0,0.43393823]
[1757017116137,0.55607585,110390.0,110380.0,0.27929823]
[1757017116369,0.55607585,110390.0,110380.0,0.43389823]
[1757017116615,0.18315583,110390.0,110380.0,0.43389823]
[1757017116829,0.02009919,110400.0,110390.0,0.18117583]
[1757017117058,0.59371901,110400.0,110390.0,0.25330583]
[1757017118257,0.59471901,110400.0,110390.0,0.25330583]
[1757017119633,0.59669901,110400.0,110390.0,0.25330583]
[1757017121575,0.59471901,110400.0,110390.0,0.25330583]
[1757017122089,0.04063957,110400.0,110390.0,0.71814184]
[1757017122298,0.04063957,110400.0,110390.0,0.34522182]
[1757017123242,0.22179899,110400.0,110390.0,0.34522182]
[1757017123477,0.59471901,110400.0,110390.0,0.34522182]
[1757017123872,0.41553959,110400.0,110390.0,0.34522182]
[1757017124078,0.59669901,110400.0,110390.0,0.49974182]
[1757017124281,0.41355959,110400.0,110390.0,0.49974182]
[1757017124506,0.04063957,110400.0,110390.0,0.49974182]
[1757017124930,0.00108501,110400.0,110390.0,0.87266184]
[1757017125766,0.00108501,110400.0,110390.0,1.27266184]
[1757017126443,8.501e-05,110400.0,110390.0,1.27266184]
[1757017127966,8.501e-05,110400.0,110390.0,1.27366184]
[1757017131331,8.501e-05,110400.0,110390.0,0.90074182]
[1757017131514,8.501e-05,110400.0,110390.0,1.27366184]
[1757017131645,8.501e-05,110400.0,110390.0,1.11914184]
[1757017131854,8.501e-05,110400.0,110390.0,1.27366184]
[1757017132312,8.501e-05,110400.0,110390.0,0.87366184]
[1757017133176,8.501e-05,110400.0,110390.0,0.34622182]
[1757017133366,0.55614445,110400.0,110390.0,0.34085182]
[1757017133575,0.38610193,110400.0,110390.0,0.49537182]
[1757017133778,0.38610193,110400.0,110390.0,0.49858182]
[1757017133979,0.38610193,110400.0,110390.0,0.50074182]
[1757017134624,0.56726135,110400.0,110390.0,0.50074182]
[1757017134820,0.38610193,110400.0,110390.0,0.50074182]
[1757017136056,0.56726135,110400.0,110390.0,0.50074182]
[1757017136205,0.56726135,110400.0,110390.0,0.49858182]
[1757017136405,0.38610193,110400.0,110390.0,0.50074182]
[1757017136605,0.56726135,110400.0,110390.0,0.34085182]
[1757017136938,0.01318191,110400.0,110390.0,0.49537182]
[1757017137143,0.01120191,110400.0,110390.0,0.50074182]
[1757017137344,0.01120191,110400.0,110390.0,0.87366184]
[1757017144830,0.01120191,110400.0,110390.0,0.71914184]
[1757017145061,0.01120191,110400.0,110390.0,0.50070182]
[1757017145261,0.01120191,110400.0,110390.0,0.87362184]
[1757017146666,0.01120191,110400.0,110390.0,1.24654186]
[1757017147262,0.01120191,110400.0,110390.0,0.87362184]
[1757017147452,0.56725135,110400.0,110390.0,0.15967599]
[1757017147624,0.56963135,110400.0,110390.0,0.34085182]
[1757017147829,0.99967011,110400.0,110390.0,0.15967599]
[1757017148027,0.56963135,110400.0,110390.0,0.31655599]
[1757017148234,0.56963135,110400.0,110390.0,0.31659599]
[1757017149277,0.56725135,110400.0,110390.0,0.49777182]
[1757017149680,0.56725135,110400.0,110390.0,0.31659599]
[1757017150637,0.56725135,110400.0,110390.0,0.49777182]
[1757017150924,0.56725135,110400.0,110390.0,0.31659599]
[1757017153715,0.56725135,110400.0,110390.0,0.49777182]
[1757017154732,0.19433133,110400.0,110390.0,0.34613182]
[1757017155083,0.19433133,110400.0,110390.0,0.50265182]
[1757017155258,0.19236133,110400.0,110390.0,0.34613182]
[1757017155462,0.19236133,110400.0,110390.0,0.50265182]
[1757017155663,0.01120191,110400.0,110390.0,0.87557184]
[1757017157457,0.01120191,110400.0,110390.0,1.27557184]
[1757017158012,0.01120191,110400.0,110390.0,1.11905184]
[1757017158215,0.01120191,110400.0,110390.0,1.27557184]
[1757017158908,0.01120191,110400.0,110390.0,0.87557184]
[1757017159307,0.01120191,110400.0,110390.0,1.27557184]
[1757017159957,0.01120191,110400.0,110390.0,0.87557184]
[1757017160350,0.01120191,110400.0,110390.0,1.27557184]
[1757017160759,0.01120191,110400.0,110390.0,1.27537184]
[1757017167540,0.01120191,110400.0,110390.0,1.27525174]
[1757017168860,0.01120191,110400.0,110390.0,1.11893174]
[1757017169063,0.01120191,110400.0,110390.0,1.27485174]
[1757017171224,0.01120191,110400.0,110390.0,0.90205182]
[1757017171403,0.01120191,110400.0,110390.0,1.27485174]
[1757017173919,0.01120191,110400.0,110390.0,0.87485174]
[1757017177953,0.01120191,110400.0,110390.0,1.27485174]
[1757017178196,0.05443517,110410.0,110400.0,0.18115942]
[1757017178394,0.07242334,110410.0,110400.0,0.43387541]
[1757017179812,0.07342334,110410.0,110400.0,0.43387541]
[1757017180655,0.20013118,110410.0,110400.0,0.43387541]
[1757017182450,0.20013118,110410.0,110400.0,0.50063541]
[1757017183480,0.001,110410.0,110400.0,0.87343533]
[1757017184370,0.001,110410.0,110400.0,1.27346675]
[1757017185538,0.0008334,110430.0,110420.0,0.1811266]
[1757017185738,0.0008334,110430.0,110420.0,0.49512259]
[1757017185990,0.0008334,110430.0,110420.0,0.50036259]
[1757017186162,0.0008334,110430.0,110420.0,0.52759162]
[1757017186772,0.0008334,110430.0,110420.0,0.52959162]
[1757017186983,0.1819436,110430.0,110420.0,0.52959162]
[1757017188050,0.1819436,110430.0,110420.0,0.53159162]
[1757017188222,0.0008334,110430.0,110420.0,0.53159162]
[1757017189783,0.0008334,110430.0,110420.0,0.90439154]
[1757017196823,0.0008334,110430.0,110420.0,0.90387154]
[1757017197403,0.1839236,110430.0,110420.0,0.53107162]
[1757017197819,0.1839236,110430.0,110420.0,0.34470502]
[1757017198028,0.1839236,110430.0,110420.0,0.49864259]
[1757017198501,0.0028134,110430.0,110420.0,0.50388259]
[1757017198730,0.1839236,110430.0,110420.0,0.50388259]
[1757017198971,0.0028134,110430.0,110420.0,0.50388259]
[1757017199171,0.0008334,110430.0,110420.0,0.50388259]
[1757017199726,0.1819436,110430.0,110420.0,0.50388259]
[1757017199929,0.0008334,110430.0,110420.0,0.50388259]
[1757017200340,0.1819436,110430.0,110420.0,0.50388259]
[1757017200546,0.1839236,110430.0,110420.0,0.50388259]
[1757017201745,0.1819436,110430.0,110420.0,0.50388259]
[1757017202165,0.0008334,110430.0,110420.0,0.50388259]
[1757017202364,0.0008334,110430.0,110420.0,0.34904259]
[1757017202546,0.0008334,110430.0,110420.0,0.50388259]
[1757017202898,0.1819436,110430.0,110420.0,0.34904259]
[1757017203120,0.1839236,110430.0,110420.0,0.50380259]
[1757017207321,0.1819436,110430.0,110420.0,0.50372259]
[1757017207945,0.0008334,110430.0,110420.0,0.50372259]
[1757017208133,0.0008334,110430.0,110420.0,0.87652251]
[1757017208921,0.0008334,110430.0,110420.0,0.90374948]
[1757017211860,0.0008334,110430.0,110420.0,1.30374948]
[1757017213928,0.0008334,110430.0,110420.0,0.93094956]
[1757017214151,0.0008334,110430.0,110420.0,1.30370948]
[1757017221554,0.0008334,110430.0,110420.0,0.93090956]
[1757017221699,0.0008334,110430.0,110420.0,1.30370948]
[1757017223835,0.0008334,110430.0,110420.0,1.14906948]
[1757017224025,0.0008334,110430.0,110420.0,1.30370948]
[1757017227505,0.0008334,110430.0,110420.0,1.67597984]
[1757017227924,0.0008334,110430.0,110420.0,0.93090956]
[1757017228335,0.0008334,110430.0,110420.0,1.67597984]
[1757017239205,0.0008334,110430.0,110420.0,0.93090956]
[1757017239556,0.0008334,110430.0,110420.0,1.67597984]
[1757017243142,0.0008334,110430.0,110420.0,1.3034447]
[1757017249153,0.0028134,110430.0,110420.0,0.53082956]
[1757017249352,0.0028134,110430.0,110420.0,0.8981247]
[1757017249629,0.0028134,110430.0,110420.0,0.9033347]
[1757017249772,0.0008334,110430.0,110420.0,0.9033347]
[1757017252411,0.0008334,110430.0,110420.0,0.53079956]
[1757017252611,0.0008334,110430.0,110420.0,0.9033347]
[1757017253183,0.0008334,110430.0,110420.0,1.3033347]
[1757017257343,0.0008334,110430.0,110420.0,0.9033347]
[1757017260488,0.38868904,110450.0,110440.0,0.1810938]
[1757017260489,0.19741632,110450.0,110440.0,0.1810938]
[1757017260715,0.19741632,110450.0,110440.0,0.49428979]
[1757017260716,0.21898339,110450.0,110440.0,0.49428979]
[1757017260925,0.21912427,110450.0,110440.0,0.49428979]
[1757017261119,0.02170795,110450.0,110440.0,0.49428979]
[1757017261322,0.39424309,110450.0,110440.0,0.49428979]
[1757017261524,0.00212088,110450.0,110440.0,0.49428979]
[1757017261807,0.55910343,110450.0,110440.0,0.49428979]
[1757017262015,0.00549088,110450.0,110440.0,0.49428979]
[1757017262239,0.37802602,110450.0,110440.0,0.49428979]
[1757017262718,0.37565602,110450.0,110440.0,0.49428979]
[1757017263178,0.40515419,110450.0,110440.0,0.49428979]
[1757017266621,0.5886016,110450.0,110440.0,0.49428979]
[1757017267029,0.40752419,110450.0,110440.0,0.49428979]
[1757017267230,0.40515419,110450.0,110440.0,0.49428979]
[1757017267669,0.40752419,110450.0,110440.0,0.49428979]
[1757017269293,0.40515419,110450.0,110440.0,0.49428979]
[1757017270591,0.00312088,110450.0,110440.0,0.49955979]
[1757017270815,0.00114088,110450.0,110440.0,0.49955979]
[1757017271295,0.00114088,110450.0,110440.0,0.87209493]
[1757017272049,0.00114088,110450.0,110440.0,0.89931867]
[1757017272445,0.00114088,110450.0,110440.0,0.52678353]
[1757017272757,0.00114088,110450.0,110440.0,0.89931867]
[1757017275347,0.00114088,110450.0,110440.0,0.37226353]
[1757017275555,0.00114088,110450.0,110440.0,0.89927867]
[1757017279597,0.00114088,110450.0,110440.0,0.74479867]
[1757017279812,0.00114088,110450.0,110440.0,0.89923867]
[1757017281191,0.00114088,110450.0,110440.0,1.27177381]
[1757017282020,0.00114088,110450.0,110440.0,1.11733381]
[1757017282240,0.00028,110480.0,110440.0,1.61177381]
[1757017282444,0.37281514,110480.0,110470.0,0.18104462]
[1757017282649,0.37479514,110480.0,110470.0,0.33972061]
[1757017282854,0.37479514,110480.0,110470.0,0.52137786]
[1757017283005,0.00226,110480.0,110470.0,0.36693786]
[1757017283417,0.37479514,110480.0,110470.0,0.52137786]
[1757017283587,0.37479514,110480.0,110470.0,0.36693786]
[1757017283790,0.37479514,110480.0,110470.0,0.52133786]
[1757017283988,0.37479514,110480.0,110470.0,0.52660786]
[1757017284192,0.37579514,110480.0,110470.0,0.52449786]
[1757017285291,0.96073748,110480.0,110470.0,0.24837725]
[1757017285652,0.58820234,110480.0,110470.0,0.42942187]
[1757017285852,0.58820234,110480.0,110470.0,0.09397725]
[1757017286063,0.96073748,110480.0,110470.0,0.06676]
[1757017286323,0.18106101,110460.0,110450.0,0.24779164]
[1757017286511,0.55359615,110460.0,110450.0,0.36692999]
[1757017286721,0.55557615,110460.0,110450.0,0.52132999]
[1757017286924,0.37451514,110460.0,110450.0,0.52132999]
[1757017287133,0.55557615,110460.0,110450.0,0.52132999]
[1757017287492,0.55554992,110460.0,110450.0,0.52132999]
[1757017287916,0.00198,110460.0,110450.0,0.52432999]
[1757017288120,0.00198,110460.0,110450.0,0.52959999]
[1757017288286,0.00198,110460.0,110450.0,0.53159999]
[1757017290511,0.18304101,110460.0,110450.0,0.52944999]
[1757017290914,0.00198,110460.0,110450.0,0.52944999]
[1757017291107,0.00198,110460.0,110450.0,0.53155999]
[1757017291311,0.00198,110460.0,110450.0,0.50433763]
[1757017292044,0.20828268,110470.0,110460.0,0.18106101]
[1757017292260,0.21026268,110470.0,110460.0,0.18106101]
[1757017293125,0.58277159,110470.0,110460.0,0.18206101]
[1757017293339,0.58277159,110470.0,110460.0,0.18306101]
[1757017293935,0.58514159,110470.0,110460.0,0.002]
[1757017294160,1.42256703,110470.0,110460.0,0.002]
[1757017294387,1.56187384,110470.0,110460.0,0.002]
[1757017294609,1.76888335,110470.0,110460.0,0.002]
[1757017294837,1.8015076,110470.0,110460.0,0.002]
[1757017295049,1.80891276,110470.0,110460.0,0.002]
[1757017295698,1.80891276,110470.0,110460.0,0.001]
[1757017295920,0.1810938,110440.0,110430.0,0.14026631]
[1757017296146,0.55795271,110440.0,110430.0,0.29476719]
[1757017296364,0.57749035,110440.0,110430.0,0.29476719]
[1757017296572,0.60472202,110440.0,110430.0,0.29476719]
[1757017296772,0.60472202,110440.0,110430.0,0.22122088]
[1757017297104,0.60472202,110440.0,110430.0,0.00014088]
[1757017297105,1.33816975,110440.0,110430.0,0.00014088]
[1757017297308,0.99375296,110440.0,110430.0,0.15550088]
[1757017297748,0.99375296,110440.0,110430.0,0.00114088]
[1757017297958,1.45817786,110440.0,110430.0,0.00114088]
[1757017298134,1.6020334,110440.0,110430.0,0.00114088]
[1757017298372,1.64514049,110440.0,110430.0,0.00214088]
[1757017298579,1.87776474,110440.0,110430.0,0.00214088]
[1757017298790,1.87776474,110440.0,110430.0,0.00114088]
[1757017298791,1.94818369,110440.0,110430.0,0.00114088]
[1757017299015,0.18115942,110400.0,110390.0,0.14026631]
[1757017299249,0.98544019,110400.0,110390.0,0.29462631]
[1757017299457,0.98544019,110400.0,110390.0,0.22790631]
[1757017299665,0.98979019,110400.0,110390.0,0.22790631]
[1757017299878,1.01703329,110400.0,110390.0,0.22790631]
[1757017300089,1.01480329,110400.0,110390.0,0.22890631]
[1757017300315,0.58091143,110400.0,110390.0,0.41204214]
[1757017300524,0.0272431,110400.0,110390.0,0.41520214]
[1757017300732,0.20840252,110400.0,110390.0,0.34165583]
[1757017300938,0.0272431,110400.0,110390.0,0.34165583]
[1757017301375,0.20840252,110400.0,110390.0,0.34165583]
[1757017301653,0.0272431,110400.0,110390.0,0.34165583]
[1757017303537,0.06357991,110400.0,110390.0,0.34165583]
[1757017303670,0.0272431,110400.0,110390.0,0.34165583]
[1757017304526,0.0272431,110400.0,110390.0,0.43357182]
[1757017308427,0.0272431,110400.0,110390.0,0.27921182]
[1757017308629,0.0272431,110400.0,110390.0,0.43357182]
[1757017309530,0.0272431,110400.0,110390.0,0.80608073]
[1757017309737,0.03651045,110410.0,110400.0,0.18115942]
[1757017309951,0.03651045,110410.0,110400.0,0.34299541]
[1757017310156,0.02723553,110410.0,110400.0,0.34495541]
[1757017310967,0.06332577,110410.0,110400.0,0.34495541]
[1757017312207,0.03609024,110410.0,110400.0,0.34495541]
[1757017312750,0.73974443,110420.0,110410.0,0.18014301]
[1757017312962,0.04664592,110420.0,110410.0,0.33962301]
[1757017313357,0.57799502,110430.0,110420.0,0.1811266]
[1757017313358,0.55362071,110430.0,110420.0,0.1811266]
[1757017313557,0.94224959,110430.0,110420.0,0.1862466]
[1757017313967,0.76113779,110430.0,110420.0,0.1862466]
[1757017314204,0.08287137,110430.0,110420.0,0.1862466]
[1757017314442,0.03858073,110440.0,110430.0,0.1811102]
[1757017314443,0.37250891,110440.0,110430.0,0.1811102]
[1757017314574,0.41930015,110440.0,110430.0,0.3354702]
[1757017314765,0.41930015,110440.0,110430.0,0.3405902]
[1757017314965,0.45617876,110440.0,110430.0,0.3405902]
[1757017315422,0.05643983,110440.0,110430.0,0.3405902]
[1757017315776,0.05643983,110440.0,110430.0,0.49926619]
[1757017316846,0.05643983,110440.0,110430.0,0.50126619]
[1757017317457,0.03701936,110440.0,110430.0,0.50126619]
[1757017317658,0.37250891,110450.0,110440.0,0.1810938]
[1757017317863,0.39392824,110450.0,110440.0,0.1862138]
[1757017318075,0.57500565,110450.0,110440.0,0.1862138]
[1757017318480,0.61184002,110450.0,110440.0,0.1862138]
[1757017318885,0.61184002,110450.0,110440.0,0.1872138]
[1757017319087,0.63906838,110450.0,110440.0,0.1882138]
[1757017319319,0.08350206,110450.0,110440.0,0.1882138]
[1757017319527,0.0562737,110450.0,110440.0,0.1882138]
[1757017320528,0.0562737,110450.0,110440.0,0.28012979]
[1757017320724,0.61184002,110450.0,110440.0,0.30223518]
[1757017320965,0.61184002,110450.0,110440.0,0.45851518]
[1757017321176,0.61184002,110450.0,110440.0,0.46167518]
[1757017321393,0.42878261,110450.0,110440.0,0.46167518]
[1757017321595,0.0562737,110450.0,110440.0,0.46167518]
[1757017322400,0.23735111,110450.0,110440.0,0.30735518]
[1757017322563,0.23933111,110450.0,110440.0,0.46163518]
[1757017323744,0.23735111,110450.0,110440.0,0.46163518]
[1757017324385,0.0562737,110450.0,110440.0,0.46163518]
[1757017324807,0.01943933,110450.0,110440.0,0.30735518]
[1757017325009,0.01943933,110450.0,110440.0,0.46163518]
[1757017325440,0.21816592,110460.0,110450.0,0.18107741]
[1757017325641,0.23764553,110460.0,110450.0,0.18407741]
[1757017325976,0.05658333,110460.0,110450.0,0.18606741]
[1757017326571,0.05758333,110460.0,110450.0,0.18606741]
[1757017326772,0.02047961,110460.0,110450.0,0.18606741]
[1757017327504,0.20154062,110460.0,110450.0,0.18606741]
[1757017327709,0.20154062,110460.0,110450.0,0.34030741]
[1757017327884,0.20154062,110460.0,110450.0,0.18606741]
[1757017328124,0.20154062,110460.0,110450.0,0.34030741]
[1757017328860,0.23996953,110460.0,110450.0,0.18107741]
[1757017329106,0.23996953,110460.0,110450.0,0.33531741]
[1757017329474,0.23996953,110460.0,110450.0,0.34030741]
[1757017329714,0.23996953,110460.0,110450.0,0.36753107]
[1757017330471,0.23799953,110460.0,110450.0,0.36753107]
[1757017332602,0.23799953,110460.0,110450.0,0.43425107]
[1757017334194,0.23996953,110460.0,110450.0,0.43425107]
[1757017334641,0.23996953,110460.0,110450.0,0.24818366]
[1757017334808,0.61247844,110460.0,110450.0,0.25017366]
[1757017335184,0.61247844,110460.0,110450.0,0.43425107]
[1757017335390,0.23996953,110460.0,110450.0,0.43425107]
[1757017335549,0.61247844,110460.0,110450.0,0.43425107]
[1757017335750,0.23996953,110460.0,110450.0,0.43425107]
[1757017335959,0.23996953,110460.0,110450.0,0.09398366]
[1757017336165,0.61485844,110460.0,110450.0,0.24818366]
[1757017336330,0.64295662,110460.0,110450.0,0.06676]
[1757017336531,0.64295662,110460.0,110450.0,0.22096]
[1757017336970,0.64057662,110460.0,110450.0,0.22096]
[1757017338208,0.66495093,110460.0,110450.0,0.22096]
[1757017338412,0.66733093,110460.0,110450.0,0.22096]
[1757017338617,0.66733093,110460.0,110450.0,0.06676]
[1757017338819,0.66733093,110460.0,110450.0,0.22092]
[1757017339022,0.66732179,110460.0,110450.0,0.22092]
[1757017339351,0.66494179,110460.0,110450.0,0.22092]
[1757017341279,0.69744088,110460.0,110450.0,0.22092]
[1757017343394,0.78935687,110460.0,110450.0,0.06676]
[1757017343595,0.1810938,110440.0,110430.0,0.06976]
[1757017343934,0.59751176,110440.0,110430.0,0.31283599]
[1757017344137,0.59948176,110440.0,110430.0,0.31782599]
[1757017344317,0.22697285,110440.0,110430.0,0.49893619]
[1757017344713,0.22697285,110440.0,110430.0,0.50093619]
[1757017345090,0.22697285,110440.0,110430.0,0.50293619]
[1757017345294,0.22705855,110440.0,110430.0,0.50293619]
[1757017347190,0.22508855,110440.0,110430.0,0.50293619]
[1757017348157,0.22508855,110440.0,110430.0,0.34877619]
[1757017348397,0.22508855,110440.0,110430.0,0.50289619]
[1757017349533,0.59773765,110440.0,110430.0,0.50289619]
[1757017351164,0.22508855,110440.0,110430.0,0.50289619]
[1757017351341,0.59773765,110440.0,110430.0,0.50289619]
[1757017352131,0.57329612,110440.0,110430.0,0.50289619]
[1757017352992,0.57329612,110440.0,110430.0,0.34877619]
[1757017353202,0.57329612,110440.0,110430.0,0.50289619]
[1757017354264,0.20064702,110440.0,110430.0,0.50289619]
[1757017354469,0.57329612,110440.0,110430.0,0.50289619]
[1757017356771,0.57329612,110440.0,110430.0,0.34877619]
[1757017356957,0.57329612,110440.0,110430.0,0.50285619]
[1757017357570,0.57329612,110440.0,110430.0,0.32174599]
[1757017357843,0.57329612,110440.0,110430.0,0.50285619]
[1757017359445,0.20064702,110440.0,110430.0,0.50285619]
[1757017359794,0.01955322,110440.0,110430.0,0.50285619]
[1757017360199,0.01955322,110440.0,110430.0,0.87550529]
[1757017362243,0.18107771,110450.0,110440.0,0.18108244]
[1757017362444,0.20063537,110450.0,110440.0,0.18108244]
[1757017362649,0.01955766,110450.0,110440.0,0.18108244]
[1757017362827,0.01955766,110450.0,110440.0,0.18304244]
[1757017363051,0.01955766,110450.0,110440.0,0.18612244]
[1757017363052,0.20063507,110450.0,110440.0,0.18612244]
[1757017363413,0.20063507,110450.0,110440.0,0.18712244]
[1757017364027,0.20063507,110450.0,110440.0,0.18812244]
[1757017364544,0.01955766,110450.0,110440.0,0.56077154]
[1757017364747,0.20063507,110450.0,110440.0,0.56077154]
[1757017365624,0.20063507,110450.0,110440.0,0.18812244]
[1757017366222,0.01955766,110450.0,110440.0,0.18812244]
[1757017366639,0.01955766,110450.0,110440.0,0.56077154]
[1757017367030,0.20063507,110450.0,110440.0,0.56077154]
[1757017367408,0.20063507,110450.0,110440.0,0.18812244]
[1757017367609,0.01955766,110450.0,110440.0,0.18812244]
[1757017368114,0.59922207,110460.0,110440.0,0.56077154]
[1757017368317,0.95878942,110460.0,110450.0,0.15404]
[1757017368499,0.95878942,110460.0,110450.0,0.15908]
[1757017369295,0.96076942,110460.0,110450.0,0.15908]
[1757017370066,0.96176942,110460.0,110450.0,0.15908]
[1757017370611,0.58912032,110460.0,110450.0,0.34015741]
[1757017370858,0.58714032,110460.0,110450.0,0.34015741]
[1757017371411,0.23808727,110460.0,110450.0,0.71280651]
[1757017372119,0.23808727,110460.0,110450.0,0.34015741]
[1757017373246,0.23808899,110460.0,110450.0,0.34015741]
[1757017373451,0.05702798,110460.0,110450.0,0.34015741]
[1757017374070,0.03745891,110460.0,110450.0,0.34015741]
[1757017374701,0.03745891,110460.0,110450.0,0.71280651]
[1757017375137,0.03745891,110460.0,110450.0,0.8047225]
[1757017376292,0.03745891,110460.0,110450.0,0.2780334]
[1757017376293,0.03645891,110460.0,110450.0,0.2780334]
[1757017376508,0.55369433,110470.0,110450.0,0.8046425]
[1757017376828,0.57325145,110470.0,110460.0,0.276057]
[1757017376987,0.20258235,110470.0,110460.0,0.278017]
[1757017377620,0.23318309,110470.0,110460.0,0.24895599]
[1757017377820,0.23418309,110470.0,110460.0,0.24895599]
[1757017378019,0.27184079,110470.0,110460.0,0.24895599]
[1757017378240,0.61388915,110470.0,110460.0,0.09695599]
[1757017378441,0.61388915,110470.0,110460.0,0.25091599]
[1757017378659,0.61388915,110470.0,110460.0,0.431977]
[1757017379370,0.61388915,110470.0,110460.0,0.278017]
[1757017379371,0.61288915,110470.0,110460.0,0.278017]
[1757017379577,0.61288915,110470.0,110460.0,0.431977]
[1757017379957,0.61388915,110470.0,110460.0,0.431977]
[1757017381590,0.61190915,110470.0,110460.0,0.431977]
[1757017381820,0.61190854,110470.0,110460.0,0.431977]
[1757017382032,0.23925944,110470.0,110460.0,0.431977]
[1757017382453,0.05821482,110470.0,110460.0,0.431977]
[1757017382663,0.05821482,110470.0,110460.0,0.498737]
[1757017382790,0.0386577,110470.0,110460.0,0.344777]
[1757017383012,0.21970232,110470.0,110460.0,0.498697]
[1757017383215,0.59235142,110470.0,110460.0,0.498697]
[1757017383441,0.4113068,110470.0,110460.0,0.498697]
[1757017383887,0.59235142,110470.0,110460.0,0.498697]
[1757017384084,0.21970232,110470.0,110460.0,0.498697]
[1757017384708,0.59433142,110470.0,110460.0,0.498697]
[1757017385817,0.0406377,110470.0,110460.0,0.498697]
[1757017386155,0.0386577,110470.0,110460.0,0.498697]
[1757017386658,0.4113068,110470.0,110460.0,0.498697]
[1757017386893,0.0386577,110470.0,110460.0,0.498697]
[1757017387783,0.21970232,110470.0,110460.0,0.498697]
[1757017388793,0.0386577,110470.0,110460.0,0.498697]
[1757017388998,0.21970232,110470.0,110460.0,0.498697]
[1757017390349,0.0386577,110470.0,110460.0,0.498697]
[1757017390982,0.0386577,110470.0,110460.0,0.8713461]
[1757017393021,0.001,110470.0,110460.0,1.2439952]
[1757017393217,0.001,110470.0,110460.0,0.8713461]
[1757017393607,0.00028,110480.0,110470.0,0.18104462]
[1757017393814,0.00042083,110480.0,110470.0,0.27607061]
[1757017394010,0.00042083,110480.0,110470.0,0.27806061]
[1757017394199,0.18144907,110480.0,110470.0,0.27806061]
[1757017394675,0.21880576,110480.0,110470.0,0.27806061]
[1757017395486,0.21880576,110480.0,110470.0,0.28006061]
[1757017395888,0.21880576,110480.0,110470.0,0.28206061]
[1757017396231,0.03777752,110480.0,110470.0,0.28206061]
[1757017396487,0.21880576,110480.0,110470.0,0.28206061]
[1757017397161,0.59343486,110480.0,110470.0,0.43586061]
[1757017397381,0.22078576,110480.0,110470.0,0.43586061]
[1757017397503,0.59343486,110480.0,110470.0,0.43586061]
[1757017397703,0.59343486,110480.0,110470.0,0.10101599]
[1757017397905,0.59580486,110480.0,110470.0,0.24971599]
[1757017398308,0.59343486,110480.0,110470.0,0.24971599]
[1757017399335,0.59343486,110480.0,110470.0,0.43076061]
[1757017399534,0.59343486,110480.0,110470.0,0.24971599]
[1757017400359,0.59343486,110480.0,110470.0,0.09591599]
[1757017400671,0.59343486,110480.0,110470.0,0.43076061]
[1757017401431,0.59343486,110480.0,110470.0,0.43586061]
[1757017401624,0.41042662,110480.0,110470.0,0.43586061]
[1757017401823,0.59145486,110480.0,110470.0,0.43586061]
[1757017402013,0.21880576,110480.0,110470.0,0.43586061]
[1757017402215,0.03777752,110480.0,110470.0,0.43586061]
[1757017402422,0.00042083,110480.0,110470.0,0.43586061]
[1757017402644,0.00042083,110480.0,110470.0,0.80850971]
[1757017403402,0.00042083,110480.0,110470.0,1.18115881]
[1757017403935,0.00042083,110480.0,110470.0,1.23711217]
[1757017404094,0.00042083,110480.0,110470.0,0.86446307]
[1757017404294,0.00042083,110480.0,110470.0,1.23711217]
[1757017404503,0.00042083,110480.0,110470.0,0.86446307]
[1757017404703,0.00042083,110480.0,110470.0,1.23711217]
[1757017405224,0.00042083,110480.0,110470.0,0.68192307]
[1757017405429,0.00042083,110480.0,110470.0,1.23568307]
[1757017405649,0.00042083,110480.0,110470.0,1.23368307]
[1757017406037,0.00042083,110480.0,110470.0,0.86303397]
[1757017406256,0.00042083,110480.0,110470.0,1.23168307]
[1757017406473,0.00042083,110480.0,110470.0,1.07792307]
[1757017406706,0.00042083,110480.0,110470.0,1.23764307]
[1757017407079,0.00042083,110480.0,110470.0,1.23564307]
[1757017407313,0.00042083,110480.0,110470.0,1.23864307]
[1757017407770,0.3726491,110500.0,110490.0,0.1801038]
[1757017407986,0.59215885,110500.0,110490.0,0.49245979]
[1757017409398,0.59215885,110500.0,110490.0,0.33873979]
[1757017409603,0.21950975,110500.0,110490.0,0.49336784]
[1757017410037,0.21950975,110500.0,110490.0,0.49536784]
[1757017410434,0.21950922,110500.0,110490.0,0.49536784]
[1757017410635,0.03851375,110500.0,110490.0,0.49536784]
[1757017410943,0.21950922,110500.0,110490.0,0.49536784]
[1757017411152,0.03851375,110500.0,110490.0,0.49536784]
[1757017412068,0.21950922,110500.0,110490.0,0.49536784]
[1757017412272,0.03851375,110500.0,110490.0,0.49536784]
[1757017412425,0.21950922,110500.0,110490.0,0.49735784]
[1757017412629,0.03851375,110500.0,110490.0,0.50046784]
[1757017412836,0.03653375,110500.0,110490.0,0.50046784]
[1757017413370,0.00046932,110500.0,110490.0,0.8726851]
[1757017413527,0.00046932,110500.0,110490.0,0.50046784]
[1757017413728,0.00046932,110500.0,110490.0,0.8726851]
[1757017413986,0.00244932,110500.0,110490.0,0.34674784]
[1757017414336,0.00046932,110500.0,110490.0,0.50042784]
[1757017414911,0.00046932,110500.0,110490.0,0.8726451]
[1757017417000,0.00046932,110500.0,110490.0,1.2726451]
[1757017418141,0.00046932,110500.0,110490.0,0.8726451]
[1757017418461,0.00046932,110500.0,110490.0,1.2726451]
[1757017419314,0.00046932,110500.0,110490.0,0.8726451]
[1757017421834,0.00046932,110500.0,110490.0,0.8725651]
[1757017423628,0.00046932,110500.0,110490.0,1.2725651]